bitfinex/quotes_SOLUSD_20240711
["timestamp","ask_amount","ask_price","bid_price","bid_amount"]
[1720717977393,7.2017,138.86,138.8,7.2045]
[1720717977909,20.0,138.85,138.8,7.2045]
[1720717978794,27.202,138.85,138.79,25.2176]
[1720717981302,7.2025,138.84,138.79,25.2176]
[1720717981606,27.2021,138.85,138.79,25.2176]
[1720717981817,20.0,138.85,138.8,7.2045]
[1720717983001,27.2021,138.85,138.79,25.2176]
[1720717984014,20.0,138.85,138.8,7.2045]
[1720717985101,7.2016,138.86,138.81,7.204]
[1720717985504,7.2016,138.86,138.82,0.63740011]
[1720717985701,7.2016,138.86,138.8,7.2044]
[1720717986007,10.11268337,138.87,138.81,7.2039]
[1720717986197,28.02,138.9,138.81,18.01]
[1720717986198,20.0,138.86,138.81,18.01]
[1720717986511,20.0,138.86,138.81,25.2139]
[1720717986900,27.2016,138.86,138.8,7.2044]
[1720717987115,7.202,138.85,138.79,7.2049]
[1720717987914,27.2016,138.86,138.8,7.2044]
[1720717988390,10.10270327,138.89,138.83,7.2027]
[1720717988597,7.1999,138.89,138.83,7.2027]
[1720717988815,12.99652471,138.88,138.83,7.2027]
[1720717989015,7.1999,138.89,138.83,7.2027]
[1720717989209,12.99613858,138.88,138.83,7.2028]
[1720717989515,7.2002,138.89,138.83,7.2028]
[1720717989701,7.2002,138.89,138.83,30.1011]
[1720717990098,7.2005,138.88,138.83,22.8983]
[1720717990800,7.201,138.87,138.83,22.8983]
[1720717991137,46.0195,138.9,138.82,7.2034]
[1720717991413,7.2008,138.88,138.82,7.2034]
[1720717991604,12.9956562,138.87,138.82,7.2034]
[1720717991803,7.2008,138.88,138.82,25.2122]
[1720717992309,12.99573935,138.87,138.82,25.2122]
[1720717992503,7.201,138.87,138.82,18.0088]
[1720717994129,7.2015,138.86,138.81,7.2038]
[1720717994330,7.2012,138.87,138.81,7.2038]
[1720717994612,12.9965,138.86,138.81,7.2038]
[1720717995588,12.9965,138.86,138.82,7.2034]
[1720717996010,12.9965,138.86,138.81,7.2039]
[1720717997209,7.202,138.85,138.8,46.8215]
[1720717997407,12.9965,138.84,138.8,46.8215]
[1720717997611,7.2017,138.86,138.8,46.8215]
[1720717997921,32.99700589,138.85,138.8,46.8215]
[1720717998118,20.0,138.85,138.8,46.8215]
[1720717998420,7.2017,138.86,138.8,46.8215]
[1720717998635,32.9969241,138.85,138.8,46.8215]
[1720717998823,20.0,138.85,138.8,46.8215]
[1720717999211,12.99684484,138.84,138.8,46.8215]
[1720717999427,20.0,138.85,138.8,46.8215]
[1720717999626,12.9967685,138.84,138.8,46.8215]
[1720717999922,7.2039,138.82,138.76,28.886]
[1720718000129,13.16954665,138.83,138.77,7.2061]
[1720718000130,20.0,138.83,138.77,7.2061]
[1720718000418,27.203,138.83,138.77,25.2208]
[1720718000628,20.0,138.83,138.77,18.0149]
[1720718000824,52.5437,138.82,138.76,28.8862]
[1720718002528,52.5437,138.82,138.74,18.0182]
[1720718002529,7.2049,138.8,138.75,7.2072]
[1720718003729,20.0,138.81,138.74,18.0182]
[1720718003906,27.2042,138.81,138.75,7.2068]
[1720718005543,20.0,138.81,138.76,7.2066]
[1720718005729,20.0,138.81,138.74,18.0182]
[1720718006031,52.545,138.8,138.74,25.2258]
[1720718006336,20.0,138.79,138.75,7.207]
[1720718007907,20.0,138.79,138.74,25.2257]
[1720718008108,7.2056,138.78,138.72,29.9544]
[1720718008529,27.2052,138.79,138.73,7.2081]
[1720718008832,7.2057,138.78,138.72,29.9542]
[1720718009724,7.2057,138.78,138.72,7.2085]
[1720718009919,27.2053,138.79,138.73,7.2082]
[1720718010831,20.0,138.79,138.74,7.2076]
[1720718011509,20.0,138.79,138.75,7.207]
[1720718012003,20.0,138.79,138.74,7.2074]
[1720718012312,20.0,138.79,138.75,1.43862067]
[1720718013238,20.0,138.79,138.75,7.207]
[1720718013533,20.0,138.8,138.75,7.207]
[1720718013712,27.2046,138.8,138.74,7.2075]
[1720718014138,7.2051,138.79,138.73,25.2284]
[1720718016511,27.2047,138.8,138.74,7.2073]
[1720718016731,27.2047,138.8,138.75,7.2071]
[1720718017041,15.5968,138.81,138.76,7.2066]
[1720718017531,22.8009,138.81,138.76,7.2066]
[1720718017713,22.8009,138.81,138.75,25.2247]
[1720718018633,7.2047,138.8,138.75,18.0178]
[1720718019109,7.2052,138.79,138.74,7.2076]
[1720718019305,7.2048,138.8,138.74,7.2076]
[1720718019516,7.2048,138.8,138.75,7.2071]
[1720718020429,7.2048,138.8,138.74,7.2074]
[1720718020935,22.8011,138.81,138.75,7.2071]
[1720718021117,15.5968,138.81,138.76,7.2066]
[1720718021312,22.801,138.81,138.75,25.2247]
[1720718022242,22.801,138.81,138.76,7.2066]
[1720718022532,15.5968,138.81,138.76,7.2066]
[1720718023653,22.8009,138.81,138.76,7.2066]
[1720718023847,22.8009,138.81,138.75,25.2247]
[1720718024716,22.8009,138.81,138.76,7.2066]
[1720718025131,15.5968,138.81,138.76,7.2066]
[1720718025331,7.2037,138.82,138.76,7.2066]
[1720718025617,7.2037,138.82,138.77,7.2061]
[1720718025618,20.0,138.81,138.77,7.2061]
[1720718026235,20.0,138.81,138.76,7.2064]
[1720718028243,6.2963,138.84,138.77,18.0153]
[1720718028448,6.2963,138.84,138.78,7.2055]
[1720718029147,7.203,138.83,138.77,25.2212]
[1720718036535,21.193,138.83,138.78,13.99]
[1720718036729,21.193,138.83,138.78,21.1956]
[1720718037651,13.99,138.83,138.78,21.1956]
[1720718037854,13.99,138.83,138.79,7.2051]
[1720718038048,7.2026,138.84,138.79,7.2051]
[1720718038240,13.99,138.83,138.79,7.2051]
[1720718038663,13.99,138.82,138.77,32.0053]
[1720718038946,13.99,138.82,138.77,39.2111]
[1720718040225,13.99,138.82,138.78,7.2055]
[1720718041830,13.99,138.82,138.77,39.2112]
[1720718042138,13.99,138.81,138.77,25.2212]
[1720718042326,13.99,138.82,138.78,7.2056]
[1720718042526,13.99,138.82,138.77,39.2113]
[1720718043038,13.99,138.82,138.78,7.2055]
[1720718043656,13.99,138.82,138.77,39.2112]
[1720718044064,2.95252507,138.86,138.8,18.0115]
[1720718044359,6.1344,138.9,138.84,13.99]
[1720718044569,7.1973,138.94,138.88,7.2003]
[1720718044859,13.99,138.93,138.89,8.63704318]
[1720718045033,77.5687,138.95,138.87,18.0017]
[1720718045232,13.99,138.91,138.87,18.0017]
[1720718045438,13.99,138.92,138.88,7.2003]
[1720718046064,13.99,138.92,138.87,39.1925]
[1720718046269,7.1979,138.93,138.87,39.1925]
[1720718046270,13.99,138.91,138.87,39.1925]
[1720718046447,13.99,138.92,138.87,39.1925]
[1720718046643,7.1979,138.93,138.87,25.2025]
[1720718046840,24.59177968,138.95,138.87,18.0017]
[1720718046841,31.78907968,138.95,138.87,18.0017]
[1720718047368,31.78907968,138.95,138.89,7.1999]
[1720718047947,7.1974,138.94,138.88,7.2003]
[1720718048150,27.1974,138.94,138.88,7.2003]
[1720718048358,20.0,138.94,138.87,18.0017]
[1720718048676,7.1983,138.92,138.87,18.0017]
[1720718049047,0.17,138.93,138.87,25.2026]
[1720718049048,7.368,138.93,138.87,25.2026]
[1720718049984,20.0,138.94,138.87,18.0017]
[1720718050169,20.0,138.94,138.89,17.9995]
[1720718050492,27.1974,138.94,138.89,17.9995]
[1720718051055,7.1981,138.93,138.87,7.2009]
[1720718051574,7.3687,138.92,138.86,18.0028]
[1720718051756,7.3687,138.92,138.86,25.2038]
[1720718052163,7.368,138.93,138.87,7.2009]
[1720718053177,7.199,138.91,138.86,18.0028]
[1720718053379,0.17,138.93,138.86,18.0028]
[1720718053590,52.5382,138.93,138.87,7.2009]
[1720718053754,52.5382,138.93,138.86,18.0028]
[1720718053755,7.1996,138.9,138.84,7.202]
[1720718054074,0.34,138.91,138.84,7.202]
[1720718054257,7.1996,138.9,138.84,7.202]
[1720718054658,7.1999,138.89,138.84,7.202]
[1720718055064,7.1996,138.9,138.84,7.202]
[1720718055260,20.0,138.94,138.81,108.0562]
[1720718055462,20.0,138.94,138.89,7.1998]
[1720718055880,31.78867968,138.95,138.89,25.1995]
[1720718056060,7.1973,138.94,138.89,25.1995]
[1720718056259,7.1973,138.94,138.88,7.2002]
[1720718056461,7.3678,138.93,138.87,7.2008]
[1720718056779,52.5378,138.93,138.87,7.2008]
[1720718057565,7.1984,138.92,138.87,7.2008]
[1720718057773,7.1984,138.92,138.86,25.2037]
[1720718057983,7.1989,138.91,138.86,25.2037]
[1720718058480,7.1985,138.92,138.86,25.2037]
[1720718059074,52.538,138.93,138.87,7.2008]
[1720718059251,20.0,138.92,138.87,7.2008]
[1720718059777,7.53835251,138.91,138.87,7.2008]
[1720718060980,7.53835251,138.91,138.86,18.0025]
[1720718061284,7.53835251,138.91,138.86,25.2038]
[1720718062962,14.73725251,138.91,138.86,18.0025]
[1720718063162,7.1995,138.9,138.85,7.2017]
[1720718063485,7.2,138.89,138.83,25.2094]
[1720718063684,7.87835251,138.91,138.83,18.0066]
[1720718063982,65.34,138.9,138.85,25.2065]
[1720718064178,72.5394,138.9,138.85,18.005]
[1720718064564,72.5394,138.9,138.85,25.2069]
[1720718064565,65.34,138.9,138.85,25.2069]
[1720718065672,65.34,138.9,138.84,7.2023]
[1720718065984,7.2002,138.89,138.83,7.2027]
[1720718066489,72.5396,138.9,138.85,7.2019]
[1720718066698,13.98,138.88,138.85,7.2019]
[1720718066989,20.0,138.9,138.86,25.2046]
[1720718067184,7.53835251,138.91,138.87,7.2009]
[1720718067487,7.53835251,138.91,138.87,8.6385346]
[1720718067488,13.98,138.91,138.87,8.6385346]
[1720718068287,13.98,138.91,138.87,7.2009]
[1720718068591,13.98,138.91,138.86,31.9836]
[1720718069093,13.98,138.91,138.86,39.1849]
[1720718069978,13.98,138.91,138.86,31.9836]
[1720718069979,21.1789,138.91,138.86,31.9836]
[1720718070280,13.98,138.9,138.85,21.1818]
[1720718070898,13.98,138.9,138.85,7.2018]
[1720718071075,13.98,138.9,138.85,21.1818]
[1720718072392,13.98,138.9,138.86,7.2013]
[1720718072773,13.98,138.91,138.86,21.1813]
[1720718073880,13.98,138.9,138.85,39.1854]
[1720718075302,13.98,138.89,138.84,13.98]
[1720718075483,25.53371486,138.93,138.85,21.1816]
[1720718075484,13.98,138.9,138.85,21.1816]
[1720718075677,7.1993,138.91,138.86,7.2014]
[1720718075678,21.1793,138.91,138.86,7.2014]
[1720718075870,21.1793,138.91,138.86,21.1814]
[1720718077293,13.98,138.91,138.87,8.63422531]
[1720718077591,13.98,138.92,138.87,40.61642531]
[1720718077900,13.98,138.92,138.88,1.43769498]
[1720718078266,28.71581486,138.93,138.88,1.43769498]
[1720718078472,14.73581486,138.93,138.88,1.43769498]
[1720718078693,13.98,138.92,138.88,1.43769498]
[1720718079192,21.1784,138.92,138.88,1.43769498]
[1720718079391,21.1784,138.92,138.87,13.98]
[1720718079581,7.1992,138.91,138.85,21.1819]
[1720718079895,13.98,138.9,138.85,21.1819]
[1720718080070,21.51858862,138.9,138.85,21.1819]
[1720718080276,28.71808862,138.9,138.85,21.1819]
[1720718080491,21.51858862,138.9,138.85,21.1819]
[1720718080688,28.71798862,138.9,138.85,21.1819]
[1720718081073,21.18,138.89,138.84,39.1883]
[1720718082606,13.98,138.88,138.84,18.006]
[1720718083177,13.98,138.88,138.84,25.2084]
[1720718083587,14.73818862,138.9,138.85,7.2018]
[1720718083783,21.51858862,138.9,138.85,21.1818]
[1720718084178,13.98,138.89,138.85,7.2018]
[1720718084501,13.98,138.89,138.85,7.202]
[1720718085196,13.98,138.88,138.84,25.2083]
[1720718085404,14.73798862,138.9,138.85,7.2018]
[1720718085591,13.98,138.89,138.85,7.2018]
[1720718086183,21.51858862,138.9,138.85,21.1818]
[1720718086797,7.53858862,138.9,138.85,21.1818]
[1720718086986,21.51858862,138.9,138.85,21.1818]
[1720718087192,13.98,138.89,138.85,7.2018]
[1720718087390,13.98,138.89,138.84,39.1883]
[1720718087687,14.73808862,138.9,138.84,25.2083]
[1720718087688,13.98,138.88,138.84,25.2083]
[1720718087999,13.98,138.88,138.84,18.006]
[1720718088379,7.53858862,138.9,138.85,21.1817]
[1720718088380,21.51858862,138.9,138.85,21.1817]
[1720718088580,20.0,138.89,138.85,21.1817]
[1720718088886,20.0,138.89,138.84,39.1885]
[1720718088889,33.98,138.89,138.84,39.1885]
[1720718089085,33.98,138.89,138.85,1.4354804]
[1720718089295,33.98,138.89,138.85,8.6373804]
[1720718089498,20.0,138.89,138.85,22.6173804]
[1720718089811,20.0,138.89,138.85,13.98]
[1720718090002,20.0,138.89,138.85,21.1819]
[1720718090182,7.53858862,138.9,138.85,21.1819]
[1720718090499,13.98,138.9,138.86,7.2014]
[1720718091910,13.98,138.9,138.85,21.1817]
[1720718092096,21.1795,138.9,138.85,21.1817]
[1720718092289,13.98,138.89,138.85,7.2017]
[1720718092797,21.1795,138.9,138.85,21.1817]
[1720718093306,21.1795,138.9,138.85,13.98]
[1720718093505,13.98,138.89,138.85,7.2019]
[1720718099815,17.96298008,138.91,138.85,7.2019]
[1720718099994,13.98,138.89,138.85,7.2019]
[1720718100396,13.98,138.87,138.82,25.2118]
[1720718100604,0.17,138.88,138.83,7.2029]
[1720718100809,13.98,138.87,138.83,7.2029]
[1720718101015,21.52046222,138.87,138.83,7.2029]
[1720718101197,13.98,138.87,138.83,7.2029]
[1720718101398,13.98,138.86,138.82,18.0088]
[1720718101594,13.98,138.86,138.82,25.2123]
[1720718101801,7.54048528,138.87,138.83,7.2028]
[1720718102010,21.52048528,138.87,138.84,7.2024]
[1720718102213,36.573,138.9,138.86,7.2014]
[1720718102416,29.04330678,138.91,138.86,18.0036]
[1720718102417,7.53926416,138.89,138.86,18.0036]
[1720718102616,7.53926416,138.89,138.87,7.2007]
[1720718102822,13.98,138.91,138.86,25.2049]
[1720718103015,13.98,138.91,138.86,39.1849]
[1720718103323,7.5381246,138.92,138.86,31.9836]
[1720718103533,13.98,138.91,138.87,7.2008]
[1720718103833,7.5381246,138.92,138.86,18.0036]
[1720718103834,13.98,138.9,138.86,18.0036]
[1720718104135,7.5381246,138.92,138.88,18.0007]
[1720718104422,7.5381246,138.92,138.89,7.1998]
[1720718104626,13.98,138.93,138.89,21.1796]
[1720718105203,7.53665199,138.95,138.9,17.9982]
[1720718105527,7.1959,138.97,138.91,7.1985]
[1720718105705,13.98,138.94,138.91,7.1985]
[1720718106114,13.98,138.94,138.9,25.1974]
[1720718107330,13.98,138.94,138.91,7.1987]
[1720718107537,13.98,138.94,138.9,25.1975]
[1720718107827,13.98,138.92,138.88,6.569]
[1720718108806,13.98,138.91,138.88,13.7694]
[1720718109338,13.98,138.92,138.88,13.7694]
[1720718109509,13.98,138.92,138.89,7.1999]
[1720718109828,13.98,138.92,138.88,13.7693]
[1720718110015,7.1979,138.93,138.88,13.7693]
[1720718110938,0.34,138.94,138.86,16.4024]
[1720718110939,13.98,138.89,138.86,16.4024]
[1720718111310,13.98,138.89,138.86,41.6071]
[1720718111634,13.98,138.9,138.86,41.6071]
[1720718111934,13.98,138.89,138.86,41.6071]
[1720718112823,13.98,138.89,138.86,41.607]
[1720718113207,13.98,138.9,138.88,7.2004]
[1720718113607,13.98,138.9,138.87,7.2007]
[1720718114123,13.98,138.9,138.88,7.2004]
[1720718114328,13.98,138.9,138.87,7.2007]
[1720718115630,13.98,138.89,138.86,18.0034]
[1720718116022,13.98,138.88,138.85,13.4111]
[1720718116615,13.98,138.88,138.85,7.2019]
[1720718116816,13.98,138.87,138.84,7.2023]
[1720718117225,13.98,138.87,138.85,7.2019]
[1720718117423,13.98,138.87,138.83,25.2092]
[1720718117835,13.98,138.87,138.84,7.2024]
[1720718120111,13.98,138.86,138.84,7.2024]
[1720718120436,7.1994,138.9,138.84,7.2024]
[1720718120741,13.98,138.86,138.84,7.2024]
[1720718121629,13.98,138.87,138.84,7.2024]
[1720718122022,13.98,138.87,138.85,7.2019]
[1720718122319,13.98,138.88,138.86,7.2014]
[1720718122520,7.53892697,138.91,138.86,7.2014]
[1720718122741,13.98,138.89,138.86,7.2014]
[1720718125161,21.51892697,138.91,138.87,18.0021]
[1720718125333,23.1172,138.94,138.88,7.2004]
[1720718125652,13.98,138.92,138.88,7.2004]
[1720718126019,33.54476507,138.94,138.89,7.1998]
[1720718126222,13.98,138.92,138.89,7.1998]
[1720718126939,7.52951625,138.94,138.9,7.1993]
[1720718127252,13.98,138.93,138.9,7.1993]
[1720718127419,13.98,138.93,138.89,25.1993]
[1720718127844,7.52951625,138.94,138.88,7.2003]
[1720718128053,7.1983,138.93,138.87,23.511]
[1720718128347,13.98,138.9,138.87,23.511]
[1720718129457,7.86951625,138.94,138.89,7.1999]
[1720718129458,15.06701625,138.94,138.89,7.1999]
[1720718129748,13.98,138.91,138.88,25.2012]
[1720718130231,13.98,138.92,138.88,25.2012]
[1720718131132,13.98,138.93,138.9,7.1992]
[1720718131747,13.98,138.93,138.89,21.1797]
[1720718132042,13.98,138.93,138.89,7.1997]
[1720718132739,13.98,138.93,138.88,31.981]
[1720718132937,7.52951625,138.94,138.91,7.1985]
[1720718133242,13.98,138.95,138.91,7.1985]
[1720718134342,7.52676239,138.97,138.92,17.9956]
[1720718134533,7.52676239,138.97,138.93,7.1974]
[1720718134534,21.50676239,138.97,138.93,7.1974]
[1720718136850,7.52676239,138.97,138.94,7.197]
[1720718137052,13.98,138.98,138.94,8.01118274]
[1720718137927,13.98,138.98,138.94,21.99118274]
[1720718139150,21.1755,138.98,138.93,15.4586]
[1720718139330,13.98,138.96,138.92,25.1936]
[1720718139532,13.98,138.96,138.91,13.6699]
[1720718139843,13.98,138.95,138.91,13.6699]
[1720718140434,13.98,138.94,138.89,41.5765]
[1720718140753,13.98,138.93,138.9,7.199]
[1720718141958,13.98,138.94,138.91,7.1988]
[1720718142749,13.98,138.94,138.9,7.1992]
[1720718143057,13.98,138.94,138.89,48.3569]
[1720718143058,13.98,138.92,138.89,25.1988]
[1720718143833,13.98,138.92,138.9,7.1993]
[1720718144257,7.1965,138.96,138.9,7.1993]
[1720718144434,13.98,138.94,138.91,7.1988]
[1720718145958,13.98,138.93,138.9,7.1992]
[1720718146340,13.98,138.93,138.91,7.1988]
[1720718146653,22.8888,138.97,138.91,7.1988]
[1720718146654,13.98,138.94,138.91,7.1988]
[1720718149062,13.98,138.95,138.92,7.1983]
[1720718150058,7.52582625,138.96,138.94,7.197]
[1720718150263,25.13202277,139.0,138.94,7.197]
[1720718150466,13.98,138.98,138.94,7.197]
[1720718150934,13.98,138.97,138.93,39.172]
[1720718151139,13.98,138.97,138.93,25.192]
[1720718151371,13.98,138.96,138.93,25.192]
[1720718151747,13.98,138.97,138.93,25.192]
[1720718152432,13.98,138.97,138.93,17.9944]
[1720718152662,13.98,138.97,138.93,25.1921]
[1720718153037,7.1948,138.99,138.94,7.1973]
[1720718153260,33.98,138.98,138.94,7.1973]
[1720718153647,13.98,138.97,138.93,25.192]
[1720718154361,20.0,138.98,138.93,25.192]
[1720718154362,33.98,138.98,138.94,7.1972]
[1720718154744,13.98,138.97,138.93,25.192]
[1720718155566,13.98,138.97,138.94,7.1973]
[1720718155773,13.98,138.96,138.93,25.192]
[1720718156667,13.98,138.96,138.92,20.6108]
[1720718156842,13.98,138.95,138.92,13.8289]
[1720718157050,13.98,138.94,138.91,7.1987]
[1720718157852,27.1953,138.98,138.92,7.1983]
[1720718158051,13.98,138.94,138.92,7.1983]
[1720718158266,13.98,138.95,138.92,7.1983]
[1720718160570,13.98,138.95,138.91,17.9959]
[1720718160861,13.98,138.94,138.92,7.1982]
[1720718161066,7.52686446,138.96,138.92,7.1982]
[1720718161256,13.98,138.95,138.92,7.1982]
[1720718161669,13.98,138.95,138.93,7.1978]
[1720718161866,7.52686446,138.96,138.93,17.9946]
[1720718162055,20.0,138.98,138.93,31.9746]
[1720718162056,13.98,138.97,138.93,31.9746]
[1720718162252,13.98,138.97,138.95,7.1968]
[1720718162769,13.98,138.97,138.94,7.1971]
[1720718163567,20.0,138.98,138.94,7.1971]
[1720718163776,20.0,138.98,138.92,13.98]
[1720718163777,13.98,138.97,138.95,7.1967]
[1720718164069,7.52387348,139.0,138.96,7.1963]
[1720718164390,13.98,138.99,138.96,7.1963]
[1720718164871,21.50387348,139.0,138.96,7.1961]
[1720718165042,13.98,138.99,138.96,7.1961]
[1720718166310,21.50387348,139.0,138.96,7.1961]
[1720718166454,7.52387348,139.0,138.96,7.1961]
[1720718166656,21.50387348,139.0,138.97,7.1956]
[1720718167171,21.50387348,139.0,138.96,7.196]
[1720718167563,13.98,138.99,138.95,17.9919]
[1720718167877,13.98,138.97,138.94,13.4308]
[1720718168248,7.52387348,139.0,138.95,7.1967]
[1720718168470,7.52387348,139.0,138.94,24.2267]
[1720718168471,13.98,138.99,138.94,38.2067]
[1720718168963,7.52387348,139.0,138.96,7.1962]
[1720718169159,7.52387348,139.0,138.97,7.1955]
[1720718169857,7.52387348,139.0,138.96,39.1661]
[1720718170265,7.52387348,139.0,138.97,7.1957]
[1720718170467,7.52387348,139.0,138.98,7.1951]
[1720718170770,7.52387348,139.0,138.98,25.1832]
[1720718171364,7.52387348,139.0,138.99,7.1947]
[1720718171755,15.1749,139.08,139.0,17.9855]
[1720718171965,13.98,139.05,139.02,7.1931]
[1720718172360,13.98,139.05,139.01,7.1935]
[1720718172767,13.98,139.05,139.01,8.63149398]
[1720718172969,14.71525387,139.07,139.0,16.3384]
[1720718172970,7.52455387,139.07,139.0,16.3384]
[1720718173178,7.52455387,139.07,139.03,13.98]
[1720718173393,7.52455387,139.07,139.01,35.9686]
[1720718173394,0.8225311,139.09,139.04,15.41220462]
[1720718173683,0.8225311,139.09,139.06,17.9776]
[1720718173684,14.8025311,139.09,139.06,17.9776]
[1720718173893,13.98,139.08,139.06,17.9776]
[1720718174258,0.8225311,139.09,139.06,17.9776]
[1720718174458,13.98,139.08,139.06,17.9776]
[1720718174689,0.8225311,139.09,139.06,25.1686]
[1720718175193,0.8225311,139.09,139.04,7.1917]
[1720718175477,0.8225311,139.09,139.07,7.1903]
[1720718175692,0.8225311,139.09,139.05,17.9782]
[1720718176061,0.8225311,139.09,139.05,25.1697]
[1720718176467,0.8225311,139.09,139.03,7.1926]
[1720718177183,0.8225311,139.09,139.05,7.1916]
[1720718177602,0.8225311,139.09,139.06,7.1906]
[1720718179893,0.8225311,139.09,139.05,7.1915]
[1720718180487,0.8225311,139.09,139.06,7.1911]
[1720718181296,0.8225311,139.09,139.06,17.9774]
[1720718181670,0.8225311,139.09,139.08,7.1901]
[1720718181886,0.8225311,139.09,139.07,7.1904]
[1720718182397,0.8225311,139.09,139.06,25.1683]
[1720718182695,0.8225311,139.09,139.06,17.9774]
[1720718182874,0.8225311,139.09,139.04,7.192]
[1720718183205,0.8225311,139.09,139.03,17.981]
[1720718183392,0.8225311,139.09,139.08,7.1901]
[1720718183567,0.8225311,139.09,139.07,25.1656]
[1720718183994,0.8225311,139.09,139.05,7.1914]
[1720718184199,0.8225311,139.09,139.05,7.1916]
[1720718184401,8.34519417,139.09,139.05,7.1915]
[1720718184570,0.8225311,139.09,139.04,25.1715]
[1720718184772,8.34507157,139.09,139.04,25.1715]
[1720718185086,15.53477157,139.09,139.03,7.1923]
[1720718185283,8.34507157,139.09,139.05,7.1913]
[1720718185484,0.8225311,139.09,139.0,35.9688]
[1720718185706,0.8225311,139.09,139.07,17.976]
[1720718186388,0.8225311,139.09,139.06,7.1907]
[1720718186609,0.8225311,139.09,139.05,7.1914]
[1720718186810,0.8225311,139.09,139.06,7.191]
[1720718187786,0.8225311,139.09,139.07,7.1905]
[1720718188300,0.8225311,139.09,139.06,25.1684]
[1720718189335,0.8225311,139.09,139.07,7.1903]
[1720718189614,0.8225311,139.09,139.08,7.1901]
[1720718189808,0.8225311,139.09,139.07,7.1905]
[1720718190389,0.8225311,139.09,139.06,25.1684]
[1720718190599,0.8225311,139.09,139.06,17.9775]
[1720718190793,0.8225311,139.09,139.03,17.9806]
[1720718191013,0.8225311,139.09,139.05,7.1916]
[1720718191211,0.8225311,139.09,139.06,17.9774]
[1720718191415,0.8225311,139.09,139.08,7.1901]
[1720718195097,0.8225311,139.09,139.07,7.1904]
[1720718195718,0.8225311,139.09,139.08,7.1901]
[1720718197235,0.8225311,139.09,139.08,21.1201]
[1720718198917,0.8225311,139.09,139.08,13.93]
[1720718199220,0.8225311,139.09,139.06,25.1683]
[1720718199428,0.8225311,139.09,139.06,39.0983]
[1720718199603,0.8225311,139.09,139.07,21.1205]
[1720718201114,0.8225311,139.09,139.07,13.93]
[1720718201806,0.8225311,139.09,139.08,39.0953]
[1720718202421,0.8225311,139.09,139.08,84.4353]
[1720718203932,0.8225311,139.09,139.08,84.2653]
[1720718204113,0.8225311,139.09,139.08,84.0953]
[1720718205327,7.51768856,139.17,139.14,7.1866]
[1720718205519,7.1842,139.2,139.14,21.1166]
[1720718205711,13.93,139.18,139.14,21.1166]
[1720718205914,29.72664008,139.19,139.15,7.1862]
[1720718206114,13.97274008,139.19,139.15,7.1862]
[1720718206325,13.97274008,139.19,139.13,17.9685]
[1720718206526,13.93,139.18,139.13,25.1556]
[1720718206826,13.93,139.17,139.13,25.1556]
[1720718207015,7.22744008,139.19,139.14,7.1869]
[1720718207016,13.93,139.18,139.14,7.1869]
[1720718207202,13.93,139.18,139.14,21.1169]
[1720718207602,0.04274008,139.19,139.14,21.1169]
[1720718207800,13.97274008,139.19,139.15,7.1862]
[1720718208315,21.15714008,139.19,139.14,21.1168]
[1720718208523,0.04274008,139.19,139.15,31.8958]
[1720718208728,0.04274008,139.19,139.16,13.93]